bitfinex/quotes_ETHUSD_20250905
["timestamp","ask_amount","ask_price","bid_price","bid_amount"]
[1757082649564,0.4911,4330.5,4329.8,1e-08]
[1757082649789,0.001,4330.5,4329.8,1.14100001]
[1757082650153,0.001,4330.5,4329.9,0.4485]
[1757082650667,0.001,4330.5,4329.8,1.14100001]
[1757082650841,0.001,4330.5,4329.8,1.58950001]
[1757082651037,0.001,4330.5,4329.8,1.14100001]
[1757082651240,12.58920231,4330.2,4329.8,1e-08]
[1757082651545,0.001,4330.5,4329.8,1e-08]
[1757082651748,12.58920231,4330.4,4329.8,1e-08]
[1757082652055,2.30985834,4329.3,4328.8,1e-08]
[1757082652371,14.89925798,4328.9,4328.8,1e-08]
[1757082653462,14.89925798,4328.9,4327.8,0.025]
[1757082653463,2.31058943,4327.9,4327.8,0.025]
[1757082653663,2.77270054,4327.9,4327.8,0.025]
[1757082654872,2.31021661,4327.1,4327.0,0.004]
[1757082655243,2.31112343,4326.9,4326.8,0.025]
[1757082655442,2.34001247,4326.9,4326.8,0.025]
[1757082655756,4.01220794,4328.7,4326.8,1.166]
[1757082655959,2.31068394,4327.8,4326.8,1.166]
[1757082656146,4.092,4328.6,4326.9,0.4485]
[1757082656354,2.31054744,4328.0,4327.0,1.141]
[1757082656550,2.31054744,4328.0,4327.1,2.31097777]
[1757082656754,1.702,4328.7,4327.4,2.31085459]
[1757082656955,2.31027449,4328.5,4327.7,2.31067452]
[1757082657252,0.1152,4328.9,4328.1,0.1152]
[1757082657576,0.84741078,4328.9,4328.1,0.1152]
[1757082657885,2.31038642,4328.3,4328.1,0.1152]
[1757082658082,0.1152,4328.9,4328.1,0.1152]
[1757082658246,0.1152,4328.9,4328.1,1.2562]
[1757082658777,0.1152,4328.9,4328.1,0.1152]
[1757082658978,1.702,4329.7,4326.8,2.3361646]
[1757082658979,0.1152,4329.4,4328.6,0.1152]
[1757082659273,0.02887302,4329.3,4327.4,3.4518564]
[1757082659476,2.42542188,4328.6,4327.9,0.1152]
[1757082659674,2.31038086,4328.3,4327.9,0.1152]
[1757082659878,2.31061361,4327.9,4327.4,1.141]
[1757082660177,0.02888303,4327.8,4326.8,0.025]
[1757082660399,4.896,4327.7,4326.8,0.025]
[1757082660582,2.31112343,4326.9,4326.8,0.025]
[1757082661076,5.3856,4327.6,4326.8,0.025]
[1757082661278,0.4896,4327.6,4326.8,1.166]
[1757082661450,2.31087935,4327.4,4326.8,1.166]
[1757082661774,2.31075694,4327.6,4326.8,1.6145]
[1757082661972,3.0,4328.4,4326.8,1.6145]
[1757082661973,0.02888103,4328.1,4326.8,1.6145]
[1757082662292,4.895,4328.6,4326.9,0.4485]
[1757082662445,2.33511671,4328.8,4327.8,2.31060108]
[1757082662645,2.31025406,4328.6,4327.6,1.141]
[1757082662893,0.25851167,4328.8,4327.6,1.141]
[1757082662894,0.075,4328.8,4328.2,2.31040255]
[1757082663187,0.075,4328.8,4328.0,1.141]
[1757082663353,0.02887703,4328.7,4327.1,1.141]
[1757082663544,2.31079404,4327.6,4327.1,1.141]
[1757082663746,0.02888503,4327.5,4326.8,0.025]
[1757082664051,2.31112343,4326.9,4326.8,0.025]
[1757082664283,2.31128368,4326.6,4326.5,1e-08]
[1757082664578,2.31149738,4326.2,4326.1,0.004]
[1757082664749,4.894,4326.7,4326.1,0.004]
[1757082664944,12.58920231,4327.3,4326.1,0.004]
[1757082665149,2.31107737,4327.0,4326.1,0.004]
[1757082665378,4.894,4327.3,4326.1,0.004]
[1757082665582,4.894,4327.3,4326.6,2.31125146]
[1757082665783,0.2310794,4327.6,4326.1,0.004]
[1757082665986,4.894,4327.6,4326.2,1.5895]
[1757082666151,12.58920231,4327.3,4326.2,1.141]
[1757082666358,12.58920231,4327.3,4326.1,0.004]
[1757082666359,2.31101661,4327.1,4326.1,0.004]
[1757082666557,2.311295,4326.6,4326.1,0.004]
[1757082666802,2.31149738,4326.2,4326.1,0.004]
[1757082666981,4.55389319,4326.2,4326.1,0.004]
[1757082667302,3.0,4326.0,4324.8,0.025]
[1757082667485,12.58920231,4325.6,4324.8,0.025]
[1757082667659,2.31219218,4324.9,4324.8,0.025]
[1757082668410,2.31213872,4325.0,4324.8,0.025]
[1757082668591,2.31272693,4323.9,4323.5,1.141]
[1757082668762,2.31272693,4323.9,4323.3,0.4515]
[1757082668763,2.34163601,4323.9,4323.3,0.003]
[1757082669111,2.3129944,4323.4,4323.3,0.003]
[1757082669255,2.34190683,4323.4,4323.3,0.003]
[1757082669571,2.31228822,4324.8,4323.3,0.003]
[1757082669572,2.31261996,4324.1,4323.3,0.003]
[1757082669771,5.32337041,4324.0,4323.3,0.003]
[1757082669970,2.3129944,4323.4,4323.3,0.003]
[1757082670275,2.4281944,4323.4,4323.3,0.003]
[1757082670479,7.3211944,4323.4,4323.3,0.003]
[1757082670806,2.31326193,4322.9,4322.8,0.025]
[1757082670957,8.9381777,4322.9,4322.8,0.025]
[1757082671159,8.9381777,4322.9,4319.4,1.1277]
[1757082671160,10.3591,4322.9,4319.4,1.1277]
[1757082671363,3.792,4320.5,4317.7,1.48147361]
[1757082671560,12.58920231,4318.8,4316.2,0.4333]
[1757082671874,2.31679911,4316.3,4316.2,0.4333]
[1757082672087,2.31567247,4318.4,4316.2,0.4333]
[1757082672416,4.92294657,4318.3,4316.2,0.4333]
[1757082672703,2.31591674,4318.0,4316.2,0.4333]
[1757082672865,4.894,4318.4,4316.2,0.4333]
[1757082673060,0.02894657,4318.3,4316.2,0.4333]
[1757082673576,0.02894657,4318.3,4316.8,2.31652213]
[1757082673771,0.02894657,4318.3,4316.5,2.31668714]
[1757082673772,0.6597,4318.4,4316.2,0.4333]
[1757082673962,2.31609051,4317.7,4316.8,2.31652143]
[1757082674163,4.895,4317.7,4316.6,1.1277]
[1757082674661,2.31631621,4317.2,4316.2,2.7501478]
[1757082674862,4.896,4317.3,4316.3,0.27501478]
[1757082675100,2.31626044,4317.4,4316.5,2.31668399]
[1757082675393,2.31613441,4317.6,4316.3,2.31679911]
[1757082675698,2.31527394,4319.2,4318.2,2.31572798]
[1757082675907,0.02894121,4319.1,4317.8,0.4333]
[1757082676109,0.02894121,4319.1,4316.9,0.4333]
[1757082676269,5.13041618,4319.0,4316.9,0.4333]
[1757082676460,2.31545799,4318.8,4316.9,0.4333]
[1757082676689,4.897,4318.7,4316.9,0.4333]
[1757082676889,2.31578369,4318.2,4317.3,2.31621005]
[1757082677198,4.897,4318.7,4317.2,2.31626581]
[1757082677376,4.897,4318.7,4317.3,0.23162658]
[1757082677571,1.704,4319.2,4317.4,0.4333]
[1757082677572,7.21244791,4318.9,4317.4,0.4333]
[1757082677772,0.02894322,4318.8,4317.4,0.4333]
[1757082678096,4.92594389,4318.7,4316.8,1.1277]
[1757082678287,2.31599563,4317.8,4316.8,1.1277]
[1757082678485,2.31586746,4318.1,4316.8,3.44423054]
[1757082678796,0.02894523,4318.5,4316.8,3.44423054]
[1757082678797,2.3161386,4317.6,4316.8,1.1277]
[1757082678962,2.31529716,4319.1,4316.8,2.31653076]
[1757082679284,6.602,4319.2,4316.9,1.561]
[1757082679490,0.02894188,4319.0,4315.5,0.499]
[1757082679700,0.792,4318.5,4315.9,0.4333]
[1757082679860,12.58920231,4318.0,4315.8,0.025]
[1757082680066,8.88051589,4317.9,4316.0,2.31695509]
[1757082680299,3.31,4317.9,4315.8,0.025]
[1757082680499,0.02668304,4317.8,4316.6,2.31662983]
[1757082680696,2.8777,4317.9,4316.9,2.31643657]
[1757082680697,1.705,4317.9,4316.9,2.31643657]
[1757082680902,0.1152,4317.0,4316.9,2.3164771]
[1757082681106,0.1152,4317.0,4315.5,0.499]
[1757082681107,5.04215529,4317.0,4315.5,0.499]
[1757082681272,4.92695596,4316.9,4315.5,0.499]
[1757082681471,1.07586664,4317.0,4315.5,0.499]
[1757082681472,0.02895663,4316.8,4315.5,0.499]
[1757082681804,0.02895328,4317.3,4315.9,1.561]
[1757082682170,0.02895126,4317.6,4315.9,1.561]
[1757082682371,0.02894992,4317.8,4315.9,1.1277]
[1757082682572,1.73394925,4317.9,4316.1,2.31690646]
[1757082682800,1.7042,4317.9,4316.2,0.4333]
[1757082683007,0.02894992,4317.8,4315.5,2.81622032]
[1757082683309,0.792,4317.5,4315.5,0.499]
[1757082683512,14.90601063,4316.3,4315.5,0.499]
[1757082683713,8.23896065,4316.2,4314.8,0.025]
[1757082683878,4.918,4316.7,4315.0,2.31744983]
[1757082684078,4.94695797,4316.6,4315.0,2.31745546]
[1757082684276,2.31653076,4316.8,4314.8,0.025]
[1757082684608,6.625,4317.2,4314.9,1.561]
[1757082684833,0.4323,4318.7,4315.0,1.561]
[1757082684990,0.02894456,4318.6,4315.1,4.561]
[1757082685194,0.02894322,4318.8,4315.4,0.792]
[1757082685378,0.02894322,4318.8,4314.9,0.17404229]
[1757082685379,0.02893317,4320.3,4319.5,2.31508276]
[1757082685580,0.025,4321.8,4319.5,1.561]
[1757082685794,0.025,4321.8,4319.3,1.706]
[1757082685795,0.025,4321.8,4320.7,2.31443978]
[1757082685994,0.025,4321.8,4321.7,2.31390425]
[1757082686211,0.025,4323.8,4321.0,0.96164326]
[1757082686519,0.025,4323.8,4320.3,6.331]
[1757082686520,0.02891711,4322.7,4319.8,3.4333]
[1757082686680,12.58920231,4322.5,4320.2,1.1277]
[1757082687007,12.58920231,4322.5,4319.9,1.706]
[1757082687008,2.16721911,4322.4,4319.9,1.706]
[1757082687175,0.02891978,4322.3,4319.9,1.706]
[1757082687380,0.05391644,4322.8,4320.0,1.561]
[1757082687686,0.05391644,4322.8,4320.1,4.561]
[1757082687908,0.46121711,4322.7,4320.1,1.561]
[1757082688213,2.31342247,4322.6,4320.8,2.31436481]
[1757082688516,2.31352952,4322.4,4320.1,4.1277]
[1757082688703,2.3138996,4321.8,4320.4,2.31459891]
[1757082688908,0.0289238,4321.7,4320.1,1.1277]
[1757082689105,2.31426765,4321.1,4320.1,3.44244679]
[1757082689288,1.1727,4322.6,4320.1,3.44244679]
[1757082689289,4.01895303,4323.5,4320.2,0.4333]
[1757082689493,2.31347599,4322.5,4320.3,14.5]
[1757082689692,2.31390823,4321.7,4320.3,14.5]
[1757082689890,0.02892447,4321.6,4319.4,3.4333]
[1757082690209,2.31470042,4320.3,4319.3,7.7777]
[1757082690409,2.31422369,4321.2,4319.3,7.7777]
[1757082690626,2.3136901,4322.1,4319.5,2.31508276]
[1757082690836,0.025,4322.8,4319.6,1.561]
[1757082691041,0.02891711,4322.7,4319.7,1.561]
[1757082691203,0.02891711,4322.7,4319.8,17.531]
[1757082691532,2.31405818,4321.5,4320.5,2.31453572]
[1757082691698,0.025,4322.8,4319.9,3.0]
[1757082692035,0.025,4322.8,4320.1,3.0]
[1757082692198,2.31358893,4322.3,4321.3,2.31407165]
[1757082692530,0.025,4322.8,4320.2,1.561]
[1757082692531,4.97192045,4322.2,4320.2,1.561]
[1757082692717,4.97192045,4322.2,4319.4,1.561]
[1757082692718,2.31438086,4320.9,4319.4,1.561]
[1757082692916,2.198,4321.9,4319.4,1.561]
[1757082693120,0.02892313,4321.8,4319.5,1.561]
[1757082693316,0.02892313,4321.8,4319.8,2.31491441]
[1757082693517,0.02892313,4321.8,4319.6,1.561]
[1757082694025,2.31385071,4321.8,4319.6,1.561]
[1757082694259,0.02892313,4321.8,4319.6,1.561]
[1757082694400,2.31379717,4321.9,4319.7,1.561]
[1757082694719,0.025,4322.8,4319.9,2.31486839]
[1757082694927,2.31384005,4321.9,4320.2,3.0]
[1757082695116,0.02891711,4322.7,4320.0,1.705]
[1757082695117,0.02891844,4322.5,4320.0,1.705]
[1757082695313,2.31391031,4321.7,4320.8,2.31437659]
[1757082695544,0.4323,4322.1,4319.6,4.937]
[1757082695727,1.705,4322.2,4319.7,2.31497557]
[1757082696041,2.31428211,4321.0,4320.1,2.31471767]
[1757082696356,2.34283209,4321.7,4320.0,2.31481029]
[1757082696533,2.31411073,4321.4,4320.4,2.3145553]
[1757082696867,1.705,4322.2,4319.6,4.937]
[1757082697070,1.705,4322.2,4319.0,1.705]
[1757082697071,0.4323,4322.1,4319.4,0.4333]
[1757082697227,2.3142711,4321.1,4320.0,2.31479289]
[1757082697427,2.3144233,4320.8,4319.9,2.31482949]
[1757082697627,0.4323,4322.1,4319.7,2.74827169]
[1757082697628,0.4323,4322.1,4319.7,0.4333]
[1757082697863,0.02892179,4322.0,4319.7,0.4333]
[1757082698024,2.31427534,4321.1,4319.7,0.4333]
[1757082698226,2.31415914,4321.3,4319.7,0.4333]
[1757082698458,6.5027,4322.6,4319.8,4.928]
[1757082698658,2.31412624,4321.3,4319.9,0.4333]
[1757082698929,0.4323,4322.3,4319.9,3.4333]
[1757082699151,0.02892112,4322.1,4319.9,0.4333]
[1757082699355,0.4323,4322.3,4319.9,0.4333]
[1757082699356,2.31358342,4322.3,4319.9,0.4333]
[1757082699561,4.0186863,4322.2,4320.7,2.31442345]
[1757082699766,2.31399339,4321.6,4320.6,2.31445856]
[1757082699966,4.01864165,4322.2,4321.0,2.31427676]
[1757082700178,1.705,4323.4,4321.1,0.4742]
[1757082700479,0.05390975,4323.8,4321.1,0.4742]
[1757082700636,2.31304459,4323.4,4321.2,1.0746]
[1757082700970,2.33832593,4322.8,4321.3,0.4742]
[1757082701277,0.1152,4322.5,4321.7,0.1152]
[1757082701571,0.001,4321.8,4321.3,2.78830016]
[1757082701789,0.001,4321.8,4321.4,2.90342549]
[1757082701972,0.001,4321.8,4321.4,0.5894]
[1757082702181,0.001,4321.8,4321.7,2.31390425]
[1757082702344,0.001,4322.3,4322.2,2.31363657]
[1757082702547,0.025,4322.8,4322.7,2.31336895]
[1757082703076,0.025,4322.8,4322.7,2.78756895]
[1757082703275,0.025,4322.8,4322.7,3.86216895]
[1757082703472,0.025,4322.8,4322.7,1.5488]
[1757082703671,0.025,4322.8,4322.7,0.4742]
[1757082703983,0.025,4322.8,4321.8,4.0746]
[1757082704185,0.025,4322.8,4319.9,7.94173142]
[1757082704186,0.025,4322.8,4322.7,2.78756895]
[1757082704689,0.025,4322.8,4322.0,0.4742]
[1757082704991,0.025,4322.8,4322.5,2.31345451]
[1757082705168,0.025,4322.8,4322.0,0.4742]
[1757082705169,0.025,4322.8,4322.6,2.3133754]
[1757082705364,0.025,4322.8,4322.7,2.31336895]
[1757082705900,0.025,4322.8,4314.9,5.328]
[1757082705901,2.31499155,4319.7,4314.9,5.328]
[1757082706206,0.4499,4319.6,4315.7,2.3171212]
[1757082706411,0.4499,4319.6,4315.2,4.58002516]
[1757082706705,0.4499,4319.6,4315.7,0.17106955]
[1757082706706,4.62853853,4319.5,4315.7,0.17106955]
[1757082706913,2.31518996,4319.3,4314.8,0.025]
[1757082707207,3.0,4319.1,4314.8,0.025]
[1757082707359,3.0,4318.9,4314.8,0.025]
[1757082707559,2.31754932,4315.0,4314.8,0.025]
[1757082707790,2.31719246,4315.6,4313.8,0.025]
[1757082707994,2.31807191,4314.0,4313.8,0.025]
[1757082708570,1.705,4314.7,4312.7,0.3371]
[1757082708880,2.31829944,4313.6,4312.1,0.00357171]
[1757082709077,7.1339,4314.7,4312.4,0.3371]
[1757082709311,1.705,4314.7,4312.1,0.00357171]
[1757082709483,1.705,4316.1,4312.9,1.4117]
[1757082709959,0.478862,4316.0,4313.0,0.3371]
[1757082710159,2.31827167,4313.6,4313.0,0.3371]
[1757082710405,4.416,4315.3,4313.0,0.3371]
[1757082710693,4.70486737,4315.2,4312.1,0.00357171]
[1757082711002,7.11941143,4315.1,4312.1,0.00357171]
[1757082711183,2.31859923,4313.0,4312.1,0.00357171]
[1757082711563,2.31873304,4312.7,4312.1,0.00357171]
[1757082711763,2.1559,4312.9,4312.1,0.00357171]
[1757082712000,2.3190019,4312.2,4312.1,0.00357171]
[1757082712201,2.3190019,4312.2,4311.8,0.025]
[1757082712202,2.31890378,4312.4,4311.8,1e-08]
[1757082712400,3.91865568,4312.1,4311.8,1e-08]
[1757082712702,2.31916324,4311.9,4311.8,1e-08]
[1757082713489,2.31616324,4311.9,4311.8,1e-08]
[1757082713658,2.76606324,4311.9,4311.8,1e-08]
[1757082713867,2.31970122,4310.9,4310.3,1e-08]
[1757082714067,2.3199703,4310.4,4310.3,1e-08]
[1757082714310,7.2959703,4310.4,4309.8,1e-08]
[1757082714516,2.3201479,4310.1,4309.8,1e-08]
[1757082714809,2.32077792,4308.9,4308.8,1e-08]
[1757082715106,1.707,4309.4,4308.8,1e-08]
[1757082715276,2.32000646,4310.4,4308.8,1e-08]
[1757082715478,1.707,4310.5,4308.8,1e-08]
[1757082715676,1.8777,4310.5,4308.8,1e-08]
[1757082715882,0.4499,4310.4,4308.8,1e-08]
[1757082716074,2.31757133,4309.3,4308.8,1e-08]
[1757082716398,0.4499,4311.0,4308.8,1e-08]
[1757082716698,0.4499,4311.0,4308.9,1.4117]
[1757082717006,2.1569,4311.5,4309.1,0.792]
[1757082717207,2.1569,4311.5,4309.0,3.14117]
[1757082717208,1.707,4311.5,4309.2,0.3371]
[1757082717765,2.3195398,4311.2,4309.3,3.0]
[1757082717968,2.31949764,4311.3,4309.9,2.3202154]
[1757082718164,0.4749,4312.8,4310.0,0.3371]
[1757082718363,0.71769,4312.7,4310.7,2.31979927]
[1757082718598,0.4499,4312.6,4310.1,0.33371]
[1757082718798,2.31910312,4312.1,4310.1,3.33371]
[1757082718999,2.31884567,4312.5,4311.1,2.31957518]
[1757082719314,2.31884567,4312.5,4310.1,3.33371]
[1757082719315,0.025,4312.8,4310.9,0.792]
[1757082719516,0.025,4312.8,4311.1,3.0]
[1757082719669,2.31873304,4312.7,4310.2,0.792]
[1757082720004,0.025,4310.8,4310.1,0.33371]
[1757082720699,0.4499,4310.7,4309.0,0.004]
[1757082720901,0.025,4310.8,4309.0,0.004]
[1757082721100,0.025,4310.8,4309.3,2.32055682]
[1757082721410,2.31980884,4310.7,4309.2,0.792]
[1757082721706,0.025,4310.8,4309.3,5.3251]
[1757082722000,0.025,4310.8,4309.5,0.792]
[1757082722205,0.025,4310.8,4309.7,0.792]
[1757082722403,0.025,4310.8,4309.8,4.988]
[1757082722703,0.025,4310.8,4309.4,0.87203038]
[1757082723004,0.025,4310.8,4308.8,1e-08]
[1757082723005,0.4749,4310.8,4308.8,1e-08]
[1757082723205,0.025,4310.8,4308.8,1e-08]
[1757082723405,0.025,4310.8,4309.1,1.4117]
[1757082723704,0.025,4310.8,4309.4,0.792]
[1757082723912,0.025,4310.8,4309.3,3.0]
[1757082724071,0.025,4310.8,4309.0,5.342]
[1757082724072,0.025,4310.8,4309.0,0.004]
[1757082724406,1.5996,4310.7,4309.0,0.004]
[1757082724604,0.16246,4310.6,4309.0,0.004]
[1757082724792,1.73699895,4310.5,4309.0,0.004]
[1757082724993,3.33659895,4310.5,4309.0,0.004]
[1757082725309,2.3206702,4309.1,4309.0,0.004]
[1757082725805,3.9202702,4309.1,4309.0,0.004]
[1757082726014,3.9202702,4309.1,4308.3,0.09119898]
[1757082726015,2.25269292,4309.1,4308.3,0.09119898]
[1757082726309,2.25269292,4309.1,4306.8,0.025]
[1757082726310,2.3211701,4308.2,4306.8,0.025]
[1757082726509,2.22368455,4309.1,4306.8,0.025]
[1757082726675,1.5996,4309.1,4306.8,0.025]
[1757082726876,11.42351247,4308.9,4306.8,0.025]
[1757082727073,2.32093951,4308.6,4306.8,0.025]
[1757082727304,5.023,4308.5,4306.8,0.025]
[1757082727474,5.027,4308.4,4306.8,0.025]
[1757082727674,0.025,4310.8,4306.8,0.025]
[1757082727874,0.025,4310.8,4306.9,1.5547]
[1757082727875,1.5996,4310.5,4306.9,1.5547]
[1757082728076,0.4499,4310.4,4307.3,0.792]
[1757082728275,0.05399693,4310.8,4308.1,2.32120888]
[1757082728276,0.025,4310.8,4308.1,2.32120888]
[1757082728476,0.025,4310.8,4308.5,0.792]
[1757082728676,1.5996,4310.7,4308.2,1.709]
[1757082728873,1.5996,4310.7,4307.5,0.3371]
[1757082728874,1.76206,4310.6,4307.8,0.3371]
[1757082729077,2.34476008,4310.8,4307.9,0.792]
[1757082729317,0.025,4310.8,4309.2,2.32061635]
[1757082729624,0.025,4310.8,4310.7,2.31980884]
[1757082729772,0.025,4310.8,4310.7,3.11180884]
[1757082729976,0.025,4311.8,4311.7,2.31927082]
[1757082730210,0.025,4312.8,4311.7,2.31927082]
[1757082730211,0.025,4312.8,4312.7,2.31873304]
[1757082730413,0.025,4313.8,4312.7,2.31873304]
[1757082730414,1e-08,4313.8,4313.7,2.31819551]
[1757082730580,0.025,4316.8,4315.7,2.3171212]
[1757082730779,0.025,4316.8,4315.7,7.0261212]
[1757082731011,1e-08,4315.8,4315.7,7.0261212]
[1757082731196,1e-08,4315.8,4315.7,6.02775419]
[1757082731600,1e-08,4315.8,4315.7,2.3171212]
[1757082731910,1.3643,4317.8,4316.7,2.31658442]
[1757082731911,0.05,4317.8,4316.7,2.31658442]
[1757082732123,0.05,4317.8,4313.4,2.435]
[1757082732413,11.42351247,4315.8,4312.0,0.20954293]
[1757082732727,1.79806401,4315.7,4312.9,0.1152]
[1757082732926,0.1152,4314.9,4312.6,1.708]
[1757082733118,1.7691,4315.7,4313.0,0.4455]
[1757082733412,1.7691,4315.7,4312.6,1.708]
[1757082733413,0.20587468,4315.6,4313.8,0.025]
[1757082733629,2.31758419,4314.9,4313.8,0.025]
[1757082733808,2.31728229,4315.4,4313.8,0.025]
[1757082733982,2.31777271,4314.5,4313.8,0.025]
[1757082734325,2.31808804,4313.9,4313.8,0.025]
[1757082734625,2.54989684,4313.9,4313.8,0.025]
[1757082734911,3.86419684,4313.9,4313.8,0.025]
[1757082735216,0.4548,4314.7,4313.8,0.025]
[1757082735378,2.31808804,4313.9,4313.8,0.025]
[1757082735584,1.3143,4313.9,4313.8,0.025]
[1757082735784,3.63238804,4313.9,4313.8,0.025]
[1757082735995,4.08718804,4313.9,4313.8,0.025]
[1757082736190,2.43859506,4313.9,4312.8,0.025]
[1757082736397,2.31862551,4312.9,4312.8,0.025]
[1757082736813,3.63292551,4312.9,4312.8,0.025]
[1757082737115,4.08772551,4312.9,4312.8,1e-08]
[1757082737512,3.63292551,4312.9,4312.8,1e-08]
[1757082737810,2.31838667,4313.4,4312.8,1e-08]
[1757082737811,1.3143,4313.4,4312.8,1e-08]
[1757082738015,1.3143,4314.4,4312.9,0.21094181]
[1757082738217,5.02164883,4317.3,4313.0,0.91204181]
[1757082738218,1.7691,4316.4,4313.0,0.91204181]
[1757082738513,5.02164883,4317.3,4313.7,0.792]
[1757082738717,5.02164883,4317.3,4313.9,3.0]
[1757082738890,1.34325395,4317.2,4314.0,5.80144181]
[1757082739212,2.31642344,4317.0,4314.2,0.792]
[1757082739400,1.3143,4316.9,4314.3,0.21311447]
[1757082739603,2.31730826,4315.4,4314.4,2.53092548]
[1757082739803,2.31772845,4314.6,4314.5,0.21311447]
[1757082740114,1.3143,4315.5,4314.5,0.21311447]
[1757082740312,0.13143,4315.4,4314.6,0.21311447]
[1757082740485,1.708,4316.1,4314.7,0.21311447]
[1757082740689,1.343262,4316.0,4314.8,0.21311447]
[1757082740991,0.792,4315.5,4312.8,0.00400001]
[1757082741192,2.31787311,4314.3,4312.8,0.00400001]
[1757082741492,2.31798057,4314.1,4312.8,0.00400001]
[1757082741693,2.31808804,4313.9,4312.8,0.00400001]
[1757082741892,1.54899547,4314.0,4312.8,0.00400001]
[1757082742107,1.57797089,4314.0,4312.8,0.00400001]
[1757082742281,2.31814177,4313.8,4312.8,0.00400001]
[1757082742482,2.31862447,4313.0,4312.8,0.00400001]
[1757082742681,2.31840364,4313.4,4312.8,0.00400001]
[1757082742985,1.54899547,4314.0,4312.8,2.32267463]
[1757082743318,0.15489955,4313.9,4313.3,0.1152]
[1757082743504,1.34327677,4313.8,4312.8,0.00400001]
[1757082743815,2.31862551,4312.9,4312.8,0.00400001]
[1757082744015,2.318518,4313.1,4312.8,0.00400001]
[1757082744225,0.1152,4313.5,4312.8,0.11920001]
[1757082744427,1.3143,4313.8,4312.8,0.00400001]
[1757082744629,0.1152,4313.7,4313.0,0.1152]
[1757082745123,0.001,4314.4,4312.8,0.00400001]
[1757082745327,0.1162,4314.4,4313.5,0.1152]
[1757082745529,0.1162,4314.4,4307.2,0.4603]
[1757082745530,11.42351247,4313.6,4307.2,0.4603]
[1757082745827,2.31964741,4311.0,4306.3,1.708]
[1757082746125,11.42351247,4311.3,4306.3,1.708]
[1757082746126,12.25399626,4310.9,4306.3,1.708]
[1757082746289,0.792,4310.7,4306.3,1.708]
[1757082746484,0.792,4310.4,4306.3,7.046]
[1757082746785,2.32042362,4309.6,4306.9,0.4455]
[1757082747006,1.7691,4310.3,4307.0,0.27924358]
[1757082747208,1.7691,4310.3,4307.2,3.0]
[1757082747410,1.7691,4310.3,4307.3,1.686]
[1757082747695,1.7691,4310.3,4307.4,0.4455]
[1757082747903,1.3143,4310.3,4307.9,0.792]
[1757082748140,1.7691,4311.1,4308.0,2.46483705]
[1757082748332,1.7691,4311.1,4308.1,5.968]
[1757082748502,1.7691,4311.1,4308.0,2.46483705]
[1757082748503,1.3143,4312.5,4308.8,0.792]
[1757082748700,1.3143,4312.5,4309.0,3.792]
[1757082748898,1.3143,4312.5,4308.9,6.1078]
[1757082748899,1.7691,4313.3,4309.7,0.792]
[1757082749112,0.17691,4313.2,4310.6,0.792]
[1757082749332,0.17691,4313.2,4310.9,2.31970122]
[1757082749544,1.3143,4313.3,4311.0,3.0]
[1757082749839,1.3143,4313.3,4311.1,5.18]
[1757082750041,1.3143,4313.3,4311.8,2.3191982]
[1757082750343,2.31846424,4313.2,4311.9,7.49813057]
[1757082750513,0.025,4312.8,4312.3,2.31894196]
[1757082750712,0.025,4312.8,4312.3,0.4026942]
[1757082751044,0.025,4312.8,4312.0,1.708]
[1757082751340,2.34369428,4312.8,4312.4,5.174]
[1757082751525,0.025,4312.8,4312.1,2.3190076]
[1757082751706,0.025,4312.8,4312.0,1.708]
[1757082752304,1.79808416,4312.7,4310.0,1.708]
[1757082752609,2.31889435,4312.4,4310.1,5.89694]
[1757082752807,0.792,4312.0,4308.6,1.708]
[1757082753010,1.79808954,4311.9,4308.7,5.16]
[1757082753513,1.3143,4311.8,4308.9,2.32077792]
[1757082753734,1.3143,4311.8,4308.8,3.4455]
[1757082754033,2.31967518,4311.0,4310.0,2.32013945]
[1757082754236,0.23196752,4311.0,4308.8,0.4455]
[1757082754406,0.4548,4311.7,4309.0,3.0]
[1757082754605,1.708,4312.3,4309.0,3.0]
[1757082754606,1.3143,4311.8,4309.1,2.7661702]
[1757082754805,1.3143,4311.8,4309.5,2.3204548]
[1757082755032,1.3143,4311.8,4310.9,2.31965002]
[1757082755236,0.02899088,4311.7,4310.7,1.708]
[1757082755426,0.13143,4311.7,4310.3,1.708]
[1757082755627,2.31939769,4311.5,4310.5,2.31986509]
[1757082755810,2.31942685,4311.5,4310.9,0.1152]
[1757082756016,0.24663,4311.7,4310.9,0.1152]
[1757082756207,0.1152,4311.7,4310.9,0.1152]
[1757082756404,0.18230842,4312.6,4310.6,2.31986266]
[1757082756605,2.31887777,4312.5,4311.3,2.31948118]
[1757082756805,1.3393,4312.8,4311.4,5.163]
[1757082757215,0.025,4312.8,4311.2,0.4455]
[1757082757426,1.7941,4312.8,4311.3,5.162]
[1757082757633,0.17941,4312.7,4311.3,5.162]
[1757082757848,0.17941,4312.7,4311.8,2.31919407]
[1757082758045,0.17941,4312.7,4311.6,1.709]
[1757082758227,0.20839416,4312.7,4311.7,1.709]
[1757082758427,2.31898626,4312.3,4311.5,2.31933349]
[1757082758629,1.3143,4312.2,4311.1,1.709]
[1757082758943,0.48378819,4312.1,4310.2,2.32003615]
[1757082759146,0.48378819,4312.1,4308.9,1.709]
[1757082759147,1.7691,4312.0,4308.9,1.709]
[1757082759345,1.7691,4312.0,4311.6,0.004]
[1757082759346,2.31921703,4311.8,4311.6,0.004]
[1757082759511,2.31927082,4311.7,4311.6,0.004]
[1757082759712,4.46865856,4311.7,4311.6,0.004]